fUSD/lending_fUSD_20240519
["ID","MTS","AMOUNT","RATE_DAILY","PERIOD"]
[327468193,1716096645058,-164.0,0.00020573,2]
[327468195,1716096645069,-439.0,0.00020573,2]
[327468197,1716096645078,-612.0,0.00020573,2]
[327468199,1716096645087,-150.0,0.00020573,2]
[327468201,1716096645097,-150.701,0.00020573,2]
[327468203,1716096645107,-1648.0,0.00020573,2]
[327468205,1716096645116,-1977.0,0.00020573,2]
[327468207,1716096645126,-1138.0,0.00020573,2]
[327468209,1716096645136,-3159.0,0.00020573,2]
[327468211,1716096645146,-215.0,0.00020573,2]
[327468213,1716096645156,-5755.0,0.00020573,2]
[327468215,1716096645166,-5915.0,0.00020573,2]
[327468217,1716096645175,-1464.0,0.00020573,2]
[327468219,1716096645185,-289.0,0.00020573,2]
[327468221,1716096645195,-37868.0,0.00020573,2]
[327468223,1716096645204,-215.424,0.00020573,2]
[327468225,1716096645213,-973.0,0.00020573,2]
[327468227,1716096645223,-2160.0,0.00020573,2]
[327468229,1716096645233,-1060.0,0.00020573,2]
[327468231,1716096645246,-606.9,0.00020722,2]
[327468233,1716096645255,-868.16,0.00020833,2]
[327468235,1716096645265,-153.33,0.00020986,2]
[327468237,1716096645275,-329.28,0.00020986,2]
[327468240,1716096645286,-500.18,0.00021233,2]
[327468242,1716096645295,-983.06,0.00021371,2]
[327468244,1716096645305,-2744.26711947,0.00021767,2]
[327468246,1716096645315,-952.98249,0.00021769,2]
[327468247,1716096645326,-150.0,0.00021828,2]
[327468249,1716096645336,-150.072,0.00021828,2]
[327468251,1716096645345,-150.09,0.00021828,2]
[327468253,1716096645355,-150.0,0.00021828,2]
[327468255,1716096645364,-150.06,0.00021828,2]
[327468258,1716096645374,-152.27,0.00021828,2]
[327468260,1716096645384,-150.339,0.00021828,2]
[327468261,1716096645393,-843.14,0.00022058,2]
[327468263,1716096645403,-151.24,0.00022058,2]
[327468266,1716096645412,-1634.17,0.00022452,2]
[327468268,1716096645422,-150.0,0.00022548,2]
[327468269,1716096645431,-868.16,0.00022727,2]
[327468271,1716096645442,-157.0,0.0002322,12]
[327468274,1716096645451,-2744.26711947,0.000233,2]
[327468276,1716096645462,-983.06,0.00023314,2]
[327468278,1716096645471,-160.46,0.00023314,2]
[327468280,1716096645480,-172.1,0.00023386,15]
[327468282,1716096645491,-151.0,0.00023573,7]
[327468284,1716096645500,-165.704284,0.00023573,7]
[327468286,1716096645510,-264.041118,0.00023573,7]
[327468288,1716096645520,-229.370434,0.00023573,7]
[327468290,1716096645529,-221.810461,0.00023573,7]
[327468292,1716096645539,-221.810461,0.00023573,7]
[327468294,1716096645549,-640.947996,0.00023573,7]
[327468296,1716096645558,-444.0,0.00023573,2]
[327468298,1716096645568,-809.0,0.00023573,2]
[327468300,1716096645577,-162.958,0.00023573,2]
[327468302,1716096645586,-438.0,0.00023573,2]
[327468304,1716096645596,-612.0,0.00023573,2]
[327468306,1716096645606,-1648.0,0.00023573,2]
[327468307,1716096645615,-1977.0,0.00023573,2]
[327468309,1716096645625,-1138.0,0.00023573,2]
[327468312,1716096645644,-3159.0,0.00023573,2]
[327468315,1716096645653,-215.0,0.00023573,2]
[327468317,1716096645663,-5755.0,0.00023573,2]
[327468319,1716096645672,-5915.0,0.00023573,2]
[327468320,1716096645682,-1464.0,0.00023573,2]
[327468323,1716096645691,-289.0,0.00023573,2]
[327468324,1716096645700,-37868.0,0.00023573,2]
[327468326,1716096645710,-150.0,0.00023573,2]
[327468328,1716096645720,-973.0,0.00023573,2]
[327468331,1716096645729,-2160.0,0.00023573,2]
[327468333,1716096645740,-1060.0,0.00023573,2]
[327468335,1716096645750,-197.33,0.00023734,2]
[327468337,1716096645759,-150.0,0.00023836,2]
[327468339,1716096645769,-157.0,0.0002426,14]
[327468341,1716096645778,-500.0,0.00024382,2]
[327468343,1716096645787,-1000.0,0.00024382,2]
[327468345,1716096645796,-500.0,0.00024382,2]
[327468347,1716096645806,-151.0,0.00024388,7]
[327468349,1716096645815,-151.0,0.00024388,7]
[327468351,1716096645825,-151.0,0.00024388,7]
[327468353,1716096645834,-151.0,0.00024388,7]
[327468355,1716096645844,-151.0,0.00024388,7]
[327468357,1716096645854,-202.677955,0.00024388,7]
[327468359,1716096645863,-151.0,0.00024388,7]
[327468361,1716096645873,-151.0,0.00024388,7]
[327468363,1716096645883,-169.226819,0.00024388,7]
[327468365,1716096645892,-167.816694,0.00024388,7]
[327468367,1716096645901,-151.0,0.00024388,7]
[327468369,1716096645912,-218.319498,0.00024388,7]
[327468371,1716096645921,-218.319498,0.00024388,7]
[327468373,1716096645931,-151.0,0.00024388,7]
[327468375,1716096645941,-151.0,0.00024388,7]
[327468377,1716096645952,-254.520185,0.00024388,7]
[327468379,1716096645962,-151.0,0.00024388,7]
[327468381,1716096645971,-150.0,0.00024662,2]
[327468383,1716096645981,-1634.17,0.00024716,2]
[327468385,1716096645991,-150.0,0.00024726,2]
[327468387,1716096646000,-150.0,0.00024828,2]
[327468389,1716096646010,-150.0,0.00024828,2]
[327468391,1716096646019,-150.0,0.00024828,2]
[327468393,1716096646029,-153.153641,0.00024828,7]
[327468395,1716096646040,-151.0,0.00024828,7]
[327468398,1716096646049,-151.0,0.00024828,7]
[327468399,1716096646059,-151.0,0.00024828,7]
[327468402,1716096646068,-159.077241,0.00024828,7]
[327468404,1716096646078,-206.276888,0.00024828,7]
[327468406,1716096646087,-206.276888,0.00024828,7]
[327468408,1716096646097,-2744.26711947,0.00024833,2]
[327468410,1716096646106,-169.71219528,0.00024889,2]
[327468412,1716096646116,-169.71219526,0.00024889,2]
[327468414,1716096646125,-1313.36898715,0.0002489,2]
[327468416,1716096646134,-171.29139753,0.0002489,2]
[327468418,1716096646143,-151.0,0.00024898,7]
[327468420,1716096646154,-151.0,0.00024898,7]
[327468422,1716096646163,-229.370434,0.00024898,7]
[327468424,1716096646173,-221.810461,0.00024898,7]
[327468426,1716096646183,-221.810461,0.00024898,7]
[327468428,1716096646192,-16427.72915415,0.00024898,2]
[327468430,1716096646202,-16427.72915415,0.00024898,2]
[327468432,1716096646211,-16427.72915415,0.00024898,2]
[327468434,1716096646220,-16427.72915415,0.00024898,2]
[327468436,1716096646229,-162.791862,0.00024898,7]
[327468438,1716096646240,-151.0,0.00024898,7]
[327468440,1716096646251,-151.0,0.00024898,7]
[327468442,1716096646261,-153.858443,0.00024898,7]
[327468444,1716096646270,-151.0,0.00024898,7]
[327468446,1716096646280,-151.0,0.00024898,7]
[327468448,1716096646290,-151.0,0.00024898,7]
[327468450,1716096646300,-165.015525,0.00024898,7]
[327468452,1716096646309,-151.0,0.00024898,7]
[327468454,1716096646320,-248.303242,0.00024898,7]
[327468456,1716096646330,-151.0,0.00024898,7]
[327468458,1716096646340,-151.0,0.00024898,7]
[327468460,1716096646349,-151.0,0.00024898,7]
[327468462,1716096646359,-151.0,0.00024898,7]
[327468464,1716096646368,-162.120981,0.00024898,7]
[327468466,1716096646377,-151.0,0.00024898,7]
[327468468,1716096646387,-1000.0,0.0002493,2]
[327468470,1716096646397,-416498.453229,0.0002499,7]
[327468472,1716096646406,-166.445607,0.0002499,7]
[327468474,1716096646415,-156.733,0.0002499,7]
[327468476,1716096646425,-151.0,0.0002499,7]
[327468478,1716096646435,-231.049231,0.0002499,7]
[327468480,1716096646444,-229.370434,0.0002499,7]
[327468482,1716096646455,-221.810461,0.0002499,7]
[327468484,1716096646465,-221.810461,0.0002499,7]
[327468486,1716096646474,-151.0,0.0002499,7]
[327468488,1716096646484,-206.276888,0.0002499,7]
[327468490,1716096646494,-206.276888,0.0002499,7]
[327468492,1716096646503,-151.0,0.0002499,7]
[327468494,1716096646512,-151.0,0.0002499,7]
[327468496,1716096646522,-151.0,0.0002499,7]
[327468498,1716096646531,-151.0,0.0002499,7]
[327468500,1716096646540,-151.0,0.0002499,7]
[327468502,1716096646550,-151.0,0.0002499,7]
[327468504,1716096646560,-158.776451,0.0002499,7]
[327468506,1716096646569,-218.319498,0.0002499,7]
[327468508,1716096646579,-218.319498,0.0002499,7]
[327468510,1716096646588,-151.0,0.0002499,7]
[327468513,1716096646598,-151.0,0.0002499,7]
[327468515,1716096646608,-293.524769,0.0002499,7]
[327468517,1716096646618,-151.0,0.0002499,7]
[327468519,1716096646628,-151.0,0.0002499,7]
[327468521,1716096646637,-151.0,0.0002499,7]
[327468523,1716096646647,-151.0,0.0002499,7]
[327468525,1716096646656,-151.0,0.0002499,7]
[327468536,1716096646835,-151.0,0.0002499,7]
[327468538,1716096646854,-151.0,0.0002499,7]
[327468540,1716096646863,-296.885576,0.0002499,7]
[327468542,1716096646872,-151.0,0.0002499,7]
[327468544,1716096646881,-151.0,0.0002499,7]
[327468546,1716096646891,-5000.0,0.00025,7]
[327468548,1716096646901,-160.0,0.00025,2]
[327468550,1716096646911,-300.0,0.00025,7]
[327468552,1716096646920,-150.0,0.00025,2]
[327468554,1716096646929,-150.0,0.00025031,2]
[327468556,1716096646939,-2456.19695707,0.0002509,2]
[327468558,1716096646948,-253.0,0.000253,16]
[327468560,1716096646957,-150.0,0.00025309,2]
[327468562,1716096646968,-150.0,0.00025365,2]
[327468564,1716096646977,-150.0,0.00025401,2]
[327468566,1716096646987,-1000.0,0.00025478,2]
[327468568,1716096646996,-500.0,0.00025478,2]
[327468570,1716096647005,-500.0,0.00025478,2]
[327468572,1716096647015,-1313.36898711,0.00025498,2]
[327468574,1716096647025,-150.0,0.00025592,2]
[327468577,1716096647036,-150.0,0.00025641,2]
[327468579,1716096647046,-150.0,0.00025692,2]
[327468581,1716096647055,-500.0,0.00025752,2]
[327468583,1716096647065,-800.0,0.00025752,2]
[327468585,1716096647075,-150.0,0.00025794,2]
[327468587,1716096647085,-150.0,0.00025796,2]
[327468588,1716096647095,-150.0,0.000258,2]
[327468591,1716096647106,-150.0,0.00025822,2]
[327468593,1716096647115,-150.0,0.00025862,2]
[327468595,1716096647124,-150.0,0.00025947,2]
[327468597,1716096647134,-150.0,0.00025981,2]
[327468598,1716096647142,-332.27010667,0.00026,3]
[327468600,1716096647153,-1000.0,0.00026026,2]
[327468603,1716096647164,-150.67,0.00026027,2]
[327468605,1716096647173,-155.53,0.00026028,2]
[327468607,1716096647183,-150.0,0.00026059,2]
[327468608,1716096647192,-150.0,0.00026065,2]
[327468611,1716096647202,-150.0,0.00026068,2]
[327468612,1716096647212,-1313.36898711,0.00026107,2]
[327468614,1716096647222,-150.0,0.00026121,2]
[327468617,1716096647232,-150.0,0.00026177,2]
[327468619,1716096647245,-150.0,0.00026255,2]
[327468621,1716096647254,-150.0,0.0002628,2]
[327468623,1716096647264,-800.0,0.000263,2]
[327468625,1716096647274,-150.0,0.000263,2]
[327468627,1716096647284,-2744.26711947,0.00026367,2]
[327468629,1716096647295,-150.0,0.00026396,2]
[327468631,1716096647305,-150.0,0.00026397,2]
[327468633,1716096647315,-150.0,0.00026398,2]
[327468635,1716096647327,-150.0,0.00026405,2]
[327468637,1716096647339,-16427.72915415,0.00026492,2]
[327468639,1716096647348,-151.0,0.00026573,7]
[327468641,1716096647357,-206.276888,0.00026573,7]
[327468643,1716096647367,-206.276888,0.00026573,7]
[327468645,1716096647377,-151.0,0.00026573,7]
[327468647,1716096647387,-151.0,0.00026573,7]
[327468649,1716096647398,-163.387328,0.00026573,7]
[327468651,1716096647408,-151.0,0.00026573,7]
[327468653,1716096647419,-151.0,0.00026573,7]
[327468655,1716096647429,-151.0,0.00026573,7]
[327468657,1716096647438,-151.0,0.00026573,7]
[327468659,1716096647449,-151.0,0.00026573,7]
[327468661,1716096647458,-1552.32261964,0.00026573,2]
[327468663,1716096647468,-421.527,0.00026573,2]
[327468665,1716096647477,-809.0,0.00026573,2]
[327468667,1716096647487,-612.0,0.00026573,2]
[327468669,1716096647497,-1592.869,0.00026573,2]
[327468671,1716096647507,-1977.0,0.00026573,2]
[327468673,1716096647516,-1133.642,0.00026573,2]
[327468675,1716096647526,-3159.0,0.00026573,2]
[327468677,1716096647535,-215.0,0.00026573,2]
[327468679,1716096647544,-5755.0,0.00026573,2]
[327468681,1716096647554,-5915.0,0.00026573,2]
[327468683,1716096647564,-1464.0,0.00026573,2]
[327468685,1716096647575,-289.0,0.00026573,2]
[327468687,1716096647584,-37868.0,0.00026573,2]
[327468689,1716096647594,-150.0,0.00026573,2]
[327468692,1716096647604,-2160.0,0.00026573,2]
[327468693,1716096647614,-1060.0,0.00026573,2]
[327468695,1716096647623,-1000.0,0.00026574,2]
[327468698,1716096647633,-500.0,0.00026574,2]
[327468699,1716096647642,-500.0,0.00026574,2]
[327468701,1716096647652,-150.0,0.00026578,2]
[327468704,1716096647662,-150.0,0.00026641,2]
[327468705,1716096647671,-1313.36898711,0.00026715,2]
[327468707,1716096647680,-150.0,0.00026723,2]
[327468709,1716096647689,-952.98249,0.00026769,2]
[327468711,1716096647698,-800.0,0.00026848,2]
[327468713,1716096647708,-503.52979664,0.00026848,2]
[327468715,1716096647717,-150.0,0.00026871,2]
[327468717,1716096647727,-150.0,0.00026935,2]
[327468719,1716096647736,-150.0,0.00026936,2]
[327468721,1716096647745,-218.319498,0.00026936,7]
[327468723,1716096647756,-218.319498,0.00026936,7]
[327468725,1716096647766,-193.646554,0.00026936,7]
[327468727,1716096647775,-151.0,0.00026936,7]
[327468729,1716096647784,-1634.17,0.0002698,2]
[327468731,1716096647794,-150.0,0.00026984,2]
[327468733,1716096647803,-159.29859086,0.00027,5]
[327468735,1716096647813,-150.0,0.00027011,2]
[327468737,1716096647822,-150.0,0.00027063,2]
[327468739,1716096647831,-150.0,0.00027083,2]
[327468741,1716096647841,-151.0,0.00027083,7]
[327468743,1716096647850,-151.0,0.00027083,7]
[327468745,1716096647860,-151.0,0.00027083,7]
[327468747,1716096647869,-151.0,0.00027083,7]
[327468749,1716096647879,-151.0,0.00027083,7]
[327468751,1716096647888,-150.0,0.00027089,2]
[327468753,1716096647896,-1000.0,0.00027122,2]
[327468755,1716096647906,-150.0,0.00027133,2]
[327468757,1716096647915,-157.051911,0.00027148,8]
[327468759,1716096647925,-152.0,0.00027171,3]
[327468761,1716096647934,-150.0,0.00027268,7]
[327468763,1716096647945,-150.0,0.00027273,2]
[327468765,1716096647955,-26750.08844352,0.00027295,5]
[327468767,1716096647964,-10000.0,0.00027297,2]
[327468769,1716096647974,-1000.0,0.00027297,2]
[327468772,1716096647984,-153.783927,0.00027297,7]
[327468774,1716096647994,-378.78953366,0.000273,2]
[327468776,1716096648003,-378.78953354,0.000273,2]
[327468778,1716096648013,-378.78953354,0.000273,2]
[327468780,1716096648023,-378.78953354,0.000273,2]
[327468782,1716096648032,-378.78953354,0.000273,2]
[327468784,1716096648041,-378.78953354,0.000273,2]
[327468786,1716096648050,-378.78953354,0.000273,2]
[327468787,1716096648059,-378.78953354,0.000273,2]
[327468789,1716096648069,-378.78953354,0.000273,2]
[327468792,1716096648079,-378.78953354,0.000273,2]
[327468793,1716096648089,-378.78953354,0.000273,2]
[327468796,1716096648098,-378.78953354,0.000273,2]
[327468797,1716096648108,-378.78953354,0.000273,2]
[327468800,1716096648118,-378.78953354,0.000273,2]
[327468801,1716096648128,-378.78953354,0.000273,2]
[327468804,1716096648138,-378.78953354,0.000273,2]
[327468805,1716096648147,-378.78953354,0.000273,2]
[327468807,1716096648156,-378.78953354,0.000273,2]
[327468809,1716096648166,-378.78953354,0.000273,2]
[327468812,1716096648176,-150.0,0.00027319,2]
[327468814,1716096648187,-1313.36898711,0.00027323,2]
[327468816,1716096648197,-150.0,0.00027339,2]
[327468818,1716096648206,-150.0,0.00027343,2]
[327468820,1716096648216,-829.63,0.00027366,2]
[327468822,1716096648225,-415.41,0.00027366,2]
[327468824,1716096648235,-415.41,0.00027366,2]
[327468826,1716096648249,-415.41,0.00027366,2]
[327468828,1716096648259,-415.41,0.00027366,2]
[327468830,1716096648268,-830.05,0.00027366,2]
[327468832,1716096648278,-415.3,0.00027366,2]
[327468834,1716096648289,-150.0,0.00027368,2]
[327468836,1716096648298,-150.0,0.00027368,2]
[327468838,1716096648308,-229.370434,0.00027392,7]
[327468840,1716096648320,-221.810461,0.00027392,7]
[327468842,1716096648330,-221.810461,0.00027392,7]
[327468844,1716096648340,-800.0,0.00027396,2]
[327468846,1716096648350,-504.71823711,0.00027397,2]
[327468848,1716096648359,-500.0,0.00027397,2]
[327468850,1716096648369,-369.30089828,0.00027397,2]
[327468852,1716096648379,-501.79097284,0.00027397,2]
[327468854,1716096648388,-187.76064824,0.00027397,2]
[327468856,1716096648398,-377.69273787,0.00027397,2]
[327468858,1716096648407,-164.49141189,0.00027397,2]
[327468860,1716096648417,-500.0,0.00027397,2]
[327468861,1716096648426,-207.59566893,0.00027397,2]
[327468862,1716096648436,-500.0,0.00027397,2]
[327468863,1716096648446,-500.0,0.00027397,2]
[327468864,1716096648455,-500.0,0.00027397,2]
[327468865,1716096648465,-503.99237648,0.00027397,2]
[327468866,1716096648474,-637.04382514,0.00027397,2]
[327468867,1716096648483,-500.0,0.00027397,2]
[327468868,1716096648493,-500.0,0.00027397,2]
[327468870,1716096648503,-500.0,0.00027397,2]
[327468872,1716096648512,-530.43882542,0.00027397,2]
[327468874,1716096648522,-218.9056581,0.00027397,2]
[327468876,1716096648531,-500.0,0.00027397,2]
[327468879,1716096648541,-500.0,0.00027397,2]
[327468881,1716096648551,-505.58989204,0.00027397,2]
[327468883,1716096648561,-520.55384091,0.00027397,2]
[327468884,1716096648570,-500.0,0.00027397,2]
[327468886,1716096648579,-500.0,0.00027397,2]
[327468889,1716096648589,-533.72790107,0.00027397,2]
[327468891,1716096648598,-529.27575331,0.00027397,2]
[327468893,1716096648608,-526.57261671,0.00027397,2]
[327468895,1716096648617,-499.43973674,0.00027397,2]
[327468896,1716096648627,-500.0,0.00027397,2]
[327468899,1716096648636,-539.78023218,0.00027397,2]
[327468900,1716096648646,-500.0,0.00027397,2]
[327468902,1716096648655,-575.74806543,0.00027397,2]
[327468905,1716096648665,-527.744981,0.00027397,2]
[327468907,1716096648675,-553.83553682,0.00027397,2]
[327468909,1716096648685,-535.05628646,0.00027397,2]
[327468911,1716096648694,-538.72594405,0.00027397,2]
[327468913,1716096648704,-592.92488251,0.00027397,2]
[327468915,1716096648714,-500.0,0.00027397,2]
[327468917,1716096648724,-542.95330308,0.00027397,2]
[327468919,1716096648733,-500.0,0.00027397,2]
[327468921,1716096648743,-500.0,0.00027397,2]
[327468923,1716096648752,-500.0,0.00027397,2]
[327468925,1716096648761,-183.09465292,0.00027397,2]
[327468927,1716096648770,-576.06228545,0.00027397,2]
[327468929,1716096648780,-527.59542213,0.00027397,2]
[327468931,1716096648789,-525.68991756,0.00027397,2]
[327468933,1716096648798,-530.4232184,0.00027397,2]
[327468935,1716096648808,-315.84356214,0.00027397,2]
[327468937,1716096648818,-500.0,0.00027397,2]
[327468939,1716096648827,-531.93402745,0.00027397,2]
[327468941,1716096648836,-678.19,0.00027397,2]
[327468943,1716096648846,-500.0,0.00027397,2]
[327468945,1716096648855,-500.0,0.00027397,2]
[327468947,1716096648865,-500.0,0.00027397,2]
[327468948,1716096648875,-522.19818397,0.00027397,2]
[327468951,1716096648885,-500.0,0.00027397,2]
[327468953,1716096648895,-500.0,0.00027397,2]
[327468955,1716096648905,-500.0,0.00027397,2]
[327468957,1716096648915,-500.0,0.00027397,2]
[327468958,1716096648924,-608.67051847,0.00027397,2]
[327468961,1716096648933,-522.87274837,0.00027397,2]
[327468963,1716096648943,-543.70650865,0.00027397,2]
[327468965,1716096648953,-616.03090596,0.00027397,2]
[327468967,1716096648962,-500.0,0.00027397,2]
[327468969,1716096648972,-500.0,0.00027397,2]
[327468971,1716096648984,-526.07836196,0.00027397,2]
[327468973,1716096648994,-512.55989862,0.00027397,2]
[327468975,1716096649004,-524.45153456,0.00027397,2]
[327468977,1716096649013,-500.0,0.00027397,2]
[327468979,1716096649023,-527.63576098,0.00027397,2]
[327468981,1716096649033,-500.0,0.00027397,2]
[327468983,1716096649042,-500.0,0.00027397,2]
[327468985,1716096649052,-500.0,0.00027397,2]
[327468987,1716096649062,-257.29603165,0.00027397,2]
[327468988,1716096649071,-500.0,0.00027397,2]
[327468991,1716096649081,-446.94127101,0.00027397,2]
[327468993,1716096649091,-520.18910969,0.00027397,2]
[327468994,1716096649101,-500.0,0.00027397,2]
[327468996,1716096649110,-542.78865701,0.00027397,2]
[327468999,1716096649120,-514.1405848,0.00027397,2]
[327469001,1716096649130,-500.0,0.00027397,2]
[327469003,1716096649139,-500.0,0.00027397,2]
[327469005,1716096649148,-500.0,0.00027397,2]
[327469006,1716096649158,-500.0,0.00027397,2]
[327469008,1716096649167,-519.67235649,0.00027397,2]
[327469010,1716096649177,-500.0,0.00027397,2]
[327469013,1716096649186,-510.88398735,0.00027397,2]
[327469015,1716096649196,-527.03402424,0.00027397,2]
[327469016,1716096649206,-540.0680978,0.00027397,2]
[327469019,1716096649215,-500.0,0.00027397,2]
[327469021,1716096649225,-500.0,0.00027397,2]
[327469026,1716096649275,-527.79724737,0.00027397,2]
[327469028,1716096649285,-522.40874629,0.00027397,2]
[327469030,1716096649295,-507.86367968,0.00027397,2]
[327469032,1716096649304,-500.0,0.00027397,2]
[327469034,1716096649313,-537.14007409,0.00027397,2]
[327469036,1716096649326,-500.0,0.00027397,2]
[327469038,1716096649336,-500.0,0.00027397,2]
[327469040,1716096649345,-500.0,0.00027397,2]
[327469042,1716096649355,-500.0,0.00027397,2]
[327469044,1716096649364,-187.00180011,0.00027397,2]
[327469047,1716096649374,-500.0,0.00027397,2]
[327469049,1716096649383,-500.0,0.00027397,2]
[327469050,1716096649392,-521.50804018,0.00027397,2]
[327469052,1716096649402,-525.36931836,0.00027397,2]
[327469054,1716096649411,-509.21365698,0.00027397,2]
[327469056,1716096649420,-520.05325036,0.00027397,2]
[327469059,1716096649430,-520.06902986,0.00027397,2]
[327469060,1716096649439,-500.0,0.00027397,2]
[327469062,1716096649448,-500.0,0.00027397,2]
[327469064,1716096649458,-524.10213433,0.00027397,2]
[327469067,1716096649467,-159.57150465,0.00027397,2]
[327469069,1716096649477,-522.39543053,0.00027397,2]
[327469071,1716096649486,-500.0,0.00027397,2]
[327469072,1716096649496,-304.9633998,0.00027397,2]
[327469074,1716096649506,-518.10591914,0.00027397,2]
[327469076,1716096649515,-538.99471468,0.00027397,2]
[327469078,1716096649524,-532.12675694,0.00027397,2]
[327469080,1716096649533,-500.0,0.00027397,2]
[327469082,1716096649543,-525.4467662,0.00027397,2]
[327469084,1716096649552,-174.75949925,0.00027397,2]
[327469086,1716096649561,-500.0,0.00027397,2]
[327469088,1716096649570,-503.39981855,0.00027397,2]
[327469090,1716096649579,-210.79453815,0.00027397,2]
[327469092,1716096649589,-512.52923409,0.00027397,2]
[327469094,1716096649599,-500.0,0.00027397,2]
[327469096,1716096649608,-521.41242139,0.00027397,2]
[327469098,1716096649617,-500.0,0.00027397,2]
[327469100,1716096649627,-622.6929474,0.00027397,2]
[327469102,1716096649636,-500.0,0.00027397,2]
[327469104,1716096649646,-534.64478403,0.00027397,2]
[327469106,1716096649655,-500.0,0.00027397,2]
[327469108,1716096649664,-511.46057911,0.00027397,2]
[327469110,1716096649674,-512.34322183,0.00027397,2]
[327469112,1716096649683,-528.60652746,0.00027397,2]
[327469114,1716096649692,-500.0,0.00027397,2]
[327469116,1716096649702,-500.0,0.00027397,2]
[327469118,1716096649711,-184.45763606,0.00027397,2]
[327469120,1716096649721,-518.13776052,0.00027397,2]
[327469122,1716096649730,-500.0,0.00027397,2]
[327469124,1716096649740,-526.73097578,0.00027397,2]
[327469126,1716096649749,-500.0,0.00027397,2]
[327469128,1716096649759,-535.15989593,0.00027397,2]
[327469130,1716096649768,-518.14928876,0.00027397,2]
[327469132,1716096649778,-581.96132556,0.00027397,2]
[327469134,1716096649787,-587.87352357,0.00027397,2]
[327469136,1716096649797,-500.0,0.00027397,2]
[327469138,1716096649806,-500.0,0.00027397,2]
[327469140,1716096649816,-500.0,0.00027397,2]
[327469142,1716096649825,-520.56215809,0.00027397,2]
[327469144,1716096649835,-515.56877431,0.00027397,2]
[327469146,1716096649844,-528.21518488,0.00027397,2]
[327469148,1716096649853,-514.5513763,0.00027397,2]
[327469150,1716096649862,-523.9756554,0.00027397,2]
[327469152,1716096649871,-500.0,0.00027397,2]
[327469153,1716096649881,-500.0,0.00027397,2]
[327469155,1716096649890,-300.0,0.00027397,2]
[327469157,1716096649900,-500.0,0.00027397,2]
[327469159,1716096649909,-500.0,0.00027397,2]
[327469161,1716096649919,-500.0,0.00027397,2]
[327469163,1716096649928,-505.97515569,0.00027397,2]
[327469165,1716096649938,-523.5952088,0.00027397,2]
[327469167,1716096649948,-500.0,0.00027397,2]
[327469169,1716096649957,-161.91894124,0.00027397,2]
[327469170,1716096649967,-483.52846605,0.00027397,2]
[327469171,1716096649977,-500.0,0.00027397,2]
[327469172,1716096649986,-525.31217466,0.00027397,2]
[327469173,1716096649997,-526.17865107,0.00027397,2]
[327469174,1716096650006,-500.0,0.00027397,2]
[327469175,1716096650015,-500.0,0.00027397,2]
[327469176,1716096650024,-520.20094044,0.00027397,2]
[327469178,1716096650033,-500.0,0.00027397,2]
[327469180,1716096650043,-500.0,0.00027397,2]
[327469182,1716096650052,-500.0,0.00027397,2]
[327469184,1716096650061,-506.16222363,0.00027397,2]
[327469186,1716096650070,-535.24741521,0.00027397,2]
[327469188,1716096650080,-500.0,0.00027397,2]
[327469190,1716096650089,-630.20647993,0.00027397,2]
[327469192,1716096650098,-520.44180168,0.00027397,2]
[327469193,1716096650107,-539.66253239,0.00027397,2]